[Event "CCT Airthings Masters Play-In 2023"]
[Site "Online"]
[Date "2023.02.03"]
[Round "2"]
[White "Bigfish"]
[Black "kuli4ik"]
[Result "0-1"]
[ECO "D17"]
[WhiteElo "2673"]
[BlackElo "2531"]
[Annotator "TA"]
[PlyCount "146"]
[EventDate "2023.02.03"]
[EventType "swiss"]
[EventCountry "NET"]
[SourceTitle "playchess.com"]
[Source "ChessBase"]
[SourceQuality "1"]
[TimeControl "600+2"]

{[%evp 19,146,22,17,0,4,0,45,53,53,33,78,61,102,81,110,100,113,113,97,58,59,44,54,50,74,78,74,70,70,51,51,42,50,10,9,8,21,17,0,11,14,14,4,8,8,0,0,0,0,0,0,0,0,-87,0,0,0,0,0,0,0,0,0,-8,-8,-93,-96,-630,-641,-634,-620,-622,-603,-596,-429,-447,-263,-253,0,-452,-433,-410,-394,-383,-375,-389,-386,-370,-342,-546,-538,-513,-502,-576,-222,-1014,-763,-988,-956,-1752,-1693,-9090,-6227,-6697,-6643,-5222,-3478,-29971,-3016,-29986,-29987,-29987,-2409,-2008,-1837,-1749,0,-1109,0,-29987,-29987,-29987,-29988,-29991,-29992,-29992,-29993,-29996,-29997]} 1. d4 {[%emt 0:00:04]} d5 {[%emt 0:00:06]} 2. c4 {[%emt 0:00:01]} c6 {[%emt 0:00:02]} 3. Nf3 {[%emt 0:00:03]} Nf6 {[%emt 0:00:01]} 4. Nc3 {[%emt 0:00:00]} dxc4 {[%emt 0:00:07]} 5. a4 {[%emt 0:00:02]} Bf5 {[%emt 0:00:04]} 6. Ne5 {[%emt 0:00:00]} Nbd7 {[%emt 0:00:02]} 7. Nxc4 {[%emt 0:00:01]} Qc7 {[%emt 0:00:02]} 8. g3 {[%emt 0:00:01]} e5 {[%emt 0:00:02]} 9. dxe5 {[%emt 0:00:01]} Nxe5 {[%emt 0:00:00]} 10. Bf4 {[%emt 0:00:02]} Nfd7 {[%emt 0:00:02]} 11. Qc1 {[%emt 0:00:12] D17: Slav Defence: 5 a4 Bf5: Lines with 6 Nh4 and 6 Ne5.} f6 {[%emt 0:01:01]} 12. Bg2 {[%emt 0:00:27]} g5 {[%emt 0:00:59]} (12... Be6 $5 {[%cal Re6c4]} 13. Nxe5 fxe5 $11) 13. Nxe5 $1 {[%emt 0:00:20] White is slightly better.} Nxe5 {[%emt 0:00:02]} 14. Be3 {[%emt 0:01:32] [#]} Bd6 $146 {[%emt 0:01:38]} ({Predecessor:} 14... Nc4 15. O-O Qe5 16. Ne4 Nxe3 17. Qxe3 O-O-O 18. Nxg5 Qxe3 19. fxe3 Bg6 20. Ne6 Rd2 21. Nxf8 Rxf8 {½-½ Petrov,N (2552)-Afanasiev,N (2542) Anapa Sea Harbor Cup 2021 (5)}) 15. h4 {[%emt 0:01:49]} g4 {[%emt 0:00:27]} 16. O-O {[%emt 0:00:20]} O-O {[%emt 0:00:05]} 17. a5 {[%emt 0:00:29]} a6 {[%emt 0:00:41]} 18. Rd1 {[%emt 0:00:09]} Qe7 {[%emt 0:00:13]} 19. Na4 {[%emt 0:01:05]} Rad8 {[%emt 0:00:17]} 20. Qc3 {[%emt 0:00:35]} Bb4 {[%emt 0:00:24]} 21. Bc5 $1 {[%emt 0:00:02]} Bxc5 {[%emt 0:00:18]} 22. Nxc5 {[%emt 0:00:03]} Bc8 {[%emt 0:00:01]} 23. Re1 {[%emt 0:00:34]} Kg7 {[%emt 0:00:47]} 24. f4 {[%emt 0:00:51]} gxf3 {[%emt 0:01:08]} 25. exf3 {[%emt 0:00:01]} Qd6 {[%emt 0:00:03]} 26. Re4 {[%emt 0:00:18]} Qd2 {[%emt 0:00:14]} 27. f4 {[%emt 0:00:56]} (27. Qxd2 {simplifies} Rxd2 28. f4 Ng4 29. b4) 27... Ng4 {[%emt 0:00:21] And now ...Qf2+ would win. Really sharp!} 28. Qxd2 {[%emt 0:00:26]} Rxd2 {[%emt 0:00:02]} 29. b4 {[%emt 0:00:02]} h5 {[%emt 0:01:07]} 30. Bf3 {[%emt 0:00:05]} Rf7 {[%emt 0:00:11]} 31. Rae1 {[%emt 0:00:10]} Rb2 {[%emt 0:00:03]} 32. R1e2 {[%emt 0:00:07]} Rb1+ {[%emt 0:00:07]} 33. Kg2 {[%emt 0:00:01]} Bf5 {[%emt 0:00:01]} 34. Rd4 {[%emt 0:00:00]} Kg6 {[%emt 0:00:16]} 35. Ne4 {[%emt 0:00:03]} Re7 {[%emt 0:00:03]} 36. Nd6 {[%emt 0:00:01] [#]} (36. Red2 $11) 36... Rxe2+ {[%emt 0:00:03]} (36... Ne3+ $1 $17 37. Rxe3 (37. Kh2 $2 Bg4 $19) 37... Rxe3 38. Bxh5+ Kxh5 39. Nxf5 Ree1) 37. Bxe2 $11 {[%emt 0:00:00] aiming for Nxf5.} Rb2 {[%emt 0:00:00]} 38. Kf1 {[%emt 0:00:06]} Ne3+ {[%emt 0:00:03]} 39. Kf2 {[%emt 0:00:02]} Nd5 {[%emt 0:00:07] ...Nc3 is the strong threat.} 40. Nxf5 {[%emt 0:00:15]} Kxf5 {[%emt 0:00:00][%mdl 4096] Endgame KRB-KRN} 41. Kf3 {[%emt 0:00:03]} Kg6 {[%emt 0:00:08]} (41... Rxb4 42. Rxb4 Nxb4 43. Ke3 $14) 42. Bd3+ {[%emt 0:00:02]} (42. Bc4 $1 $11) 42... f5 $17 {[%emt 0:00:01] Black is more active.} 43. Bc4 $2 {[%emt 0:00:03][%mdl 8192]} (43. Be2 $17) 43... Rxb4 $19 {[%emt 0:00:00]} (43... Nxb4 $2 44. Rd6+ Kh7 45. Rd7+ Kg6 46. Rxb7 $16) 44. Ke2 {[%emt 0:00:01]} Ra4 {[%emt 0:00:01]} 45. Kd3 {[%emt 0:00:01]} Rxa5 {[%emt 0:00:02]} 46. Bb3 {[%emt 0:00:00]} Rb5 {[%emt 0:00:03]} ({Wrong is} 46... Ra3 $2 47. Kc2 $19) 47. Kc2 {[%emt 0:00:01]} Rb4 {[%emt 0:00:03]} (47... Rc5+ $142 48. Kb2 a5) 48. Rd3 {[%emt 0:00:02]} Rb5 {[%emt 0:00:00]} (48... a5 $19 {...Rb5 would be deadly.} 49. Bxd5 cxd5 50. Rxd5 a4 51. Rd6+ Kf7) 49. Rd2 $2 {[%emt 0:00:03][%mdl 8192]} (49. Rd4 $1 $11 {and White stays safe.}) 49... Rc5+ {[%emt 0:00:01]} 50. Kb2 {[%emt 0:00:01]} a5 {[%emt 0:00:01][%cal Ba6a5,Ba5a4][%mdl 32]} 51. Re2 {[%emt 0:00:01]} Kf6 {[%emt 0:00:03]} 52. Re5 {[%emt 0:00:03]} b5 {[%emt 0:00:01][%cal Bb7b5,Bb5b4][%mdl 32]} 53. Bc2 {[%emt 0:00:01]} Kg7 {[%emt 0:00:09] Threatens to win with ...a4.} 54. Bxf5 {[%emt 0:00:01]} (54. Bd1 $142 Nb4 55. Rxc5 Nd3+ 56. Ka2 Nxc5 57. Bxh5) 54... a4 {[%emt 0:00:02]} 55. Be4 {[%emt 0:00:05] [#]} b4 $1 {[%emt 0:00:01] White must now prevent ...a3+.} 56. Rg5+ {[%emt 0:00:04]} Kf6 $2 {[%emt 0:00:02]} (56... Kf7 57. Rf5+ (57. Rxh5 $2 {loses.} a3+ 58. Kb3 Rc3+ 59. Ka2 Rxg3 $19) 57... Ke7 58. Rxh5 a3+ 59. Kb3 Rc3+ 60. Ka2 Rxg3 61. Re5+ (61. Bxd5 cxd5 62. Re5+ Kd6 $19) 61... Kd6 62. Bxd5 cxd5) 57. Rf5+ $2 {[%emt 0:00:04]} (57. Rg6+ Ke7 58. Bxd5 cxd5 59. Ra6 a3+ 60. Kb3) 57... Ke6 {[%emt 0:00:01] Strongly threatening ...a3+.} 58. Re5+ {[%emt 0:00:01]} Kd6 {[%emt 0:00:01]} 59. Bxd5 {[%emt 0:00:01]} Rxd5 {[%emt 0:00:02] KR-KR} 60. Re4 {[%emt 0:00:02]} c5 {[%emt 0:00:02]} 61. Kc2 {[%emt 0:00:01] Inhibits Rd2+.} a3 {[%emt 0:00:02] Hoping for ...Rd4.} 62. Re8 {[%emt 0:00:05]} Rd4 {[%emt 0:00:03] ( -> ...Kd5)} 63. Rh8 {[%emt 0:00:04]} Rc4+ {[%emt 0:00:03]} (63... Kd5 $142 64. Re8 Rc4+ 65. Kb1 Rc3 66. f5 b3 67. Ra8 b2 68. Rxa3 Rxa3 69. f6 Rxg3 70. Kxb2 Rf3 71. Kc2 c4 72. f7 Kd4 73. Kd2 Rxf7 74. Kc2 Rf2+ 75. Kd1 Kd3 76. Kc1 Rh2 77. Kb1 Kc3 78. Ka1 Kb3 79. Kb1 Rh1#) 64. Kb3 {[%emt 0:00:02]} Rc3+ {[%emt 0:00:01]} 65. Ka2 {[%emt 0:00:00]} Rc2+ {[%emt 0:00:02]} (65... Kd5 $142 66. Rxh5+ Kd4 67. Re5 Rc2+ 68. Kb3 Rb2+ 69. Ka4 a2 70. Re1 Rb1 71. Re7 a1=Q+ 72. Kb5 b3 73. Rd7+ Kc3 74. f5 Qa8 75. Kxc5 Qc8+ 76. Kd6 Rd1+ {[%mdl 64] Skewer, Deflection} 77. Ke5 Qxd7 78. Kf6 Qd8+ 79. Kg6 Rd6+ 80. f6 Qxf6+ 81. Kh7 Qg6+ 82. Kh8 Rd8#) 66. Kb3 {[%emt 0:00:01]} Rb2+ {[%emt 0:00:01]} 67. Kc4 {[%emt 0:00:01]} Rc2+ {[%emt 0:00:02]} 68. Kb3 {[%emt 0:00:01]} Rc3+ {[%emt 0:00:01]} (68... Rf2 $19 69. Rh7 Rf3+ 70. Kc4 Rc3+ 71. Kb5 a2 72. Rh6+ Kd5 73. Rxh5+ Kd4) 69. Ka2 {[%emt 0:00:01]} Rxg3 {[%emt 0:00:00] Black mates.} 70. Rxh5 {[%emt 0:00:02]} c4 {[%emt 0:00:01]} 71. Rb5 {[%emt 0:00:01]} Rg2+ {[%emt 0:00:01]} 72. Kb1 {[%emt 0:00:01]} b3 {[%emt 0:00:00][%cal Rg2g1]} 73. Kc1 {[%emt 0:00:02]} a2 {[%emt 0:00:02] Weighted Error Value: White=0.67/Black=0.31} 0-1

[Event "CCT Airthings Masters Play-In 2023"]
[Site "Online"]
[Date "2023.02.03"]
[Round "2"]
[White "TheCount"]
[Black "Harsha_Bharathakoti"]
[Result "1-0"]
[ECO "B40"]
[WhiteElo "2659"]
[BlackElo "2523"]
[Annotator "TA"]
[PlyCount "45"]
[EventDate "2023.02.03"]
[EventType "swiss"]
[EventCountry "NET"]
[SourceTitle "playchess.com"]
[Source "ChessBase"]
[SourceQuality "1"]
[TimeControl "600+2"]

{[%evp 9,45,17,23,15,15,20,12,-27,-20,-35,-9,-42,15,-28,0,-27,0,0,0,0,0,0,0,0,0,0,116,112,232,231,228,206,1108,1039,29994,29995,29995,29996]} 1. e4 {[%emt 0:00:04]} c5 {[%emt 0:00:11]} 2. Nf3 {[%emt 0:00:11]} e6 {[%emt 0:00:03]} 3. b3 {[%emt 0:00:07]} a6 {[%emt 0:00:35]} 4. Bb2 {[%emt 0:00:07]} Nc6 {[%emt 0:00:02]} 5. c4 {[%emt 0:00:38]} Nf6 {[%emt 0:00:58]} 6. e5 {[%emt 0:00:10] B40: Sicilian: 2...e6, Unusual lines.} Ng4 {[%emt 0:00:02][%cal Bf6g4,Bg4h6,Bh6f5][%mdl 32]} 7. h3 {[%emt 0:00:13]} Nh6 {[%emt 0:00:03]} 8. Be2 $5 {[%emt 0:01:23][%mdl 4] The position is equal. Leaves trodden paths.} Nf5 {[%emt 0:00:18]} 9. O-O {[%emt 0:00:03] [#]} Be7 $146 {[%emt 0:00:16]} ({Predecessor:} 9... d6 10. exd6 Bxd6 11. Bd3 Nfd4 12. Nxd4 cxd4 13. Be4 e5 14. Re1 O-O 15. c5 Bxc5 16. Bxc6 bxc6 17. Rxe5 {0-1 Enersen,E (1911)-Gajewski,G (2630) Oslo op Fornebu 2017 (1)}) 10. Nc3 {[%emt 0:00:03]} O-O {[%emt 0:00:36]} ({Better is} 10... d6 $15) 11. Ne4 {[%emt 0:00:05]} b6 {[%emt 0:00:43]} 12. Re1 {[%emt 0:00:06]} Bb7 {[%emt 0:00:04]} 13. Bd3 {[%emt 0:00:04]} f6 {[%emt 0:01:20]} 14. exf6 {[%emt 0:01:21]} gxf6 {[%emt 0:00:00]} 15. Ng3 {[%emt 0:00:20]} Nxg3 {[%emt 0:00:52]} 16. fxg3 {[%emt 0:00:00]} f5 {[%emt 0:00:00] Against Be4} 17. g4 {[%emt 0:00:36]} fxg4 {[%emt 0:00:03]} (17... Bf6 $11 18. Bc3 (18. Bxf6 Qxf6 19. gxf5 Nb4 $17) 18... fxg4 19. hxg4 Rf7) 18. Ne5 $16 {[%emt 0:00:12] White is more active.} Nxe5 {[%emt 0:02:04]} (18... Bh4 $16 {was necessary.}) 19. Rxe5 $18 {[%emt 0:00:29][%cal Be1e5,Be5g5,Bg5g8][%mdl 32]} ({Worse is} 19. Bxe5 h5 $11) 19... Rf4 {[%emt 0:00:01] [#] ...Bh4 would be deadly.} 20. Bxh7+ $1 {[%emt 0:00:25][%mdl 64] Decoy} Kxh7 $2 {[%emt 0:00:10]} (20... Kf7) 21. Qc2+ {[%emt 0:00:05]} ({Wrong is} 21. Rh5+ $2 Kg6 22. hxg4 Bf6 $19) 21... Kg7 {[%emt 0:01:29]} 22. Rg5+ {[%emt 0:00:09][%mdl 64] Discovered Attack (Double check), Double Attack} (22. Rxc5+ $2 {too greedy.} Bf6 23. Rg5+ Kf8 24. Rxg4 Rxg4 25. hxg4 Bxb2 26. Rf1+ Ke7 27. Qxb2 Qh8 28. Qxh8 Rxh8 $19) 22... Kf8 {[%emt 0:00:01] [#]} 23. Rg8+ $3 {[%emt 0:00:03][%mdl 576] Skewer, Decoy. An entertaining game by TheCount.   Weighted Error Value: White=0.08 (flawless) /Black=0.76} 1-0

[Event "CCT Airthings Masters Play-In 2023"]
[Site "Online"]
[Date "2023.02.03"]
[Round "2"]
[White "SahajGrover"]
[Black "Igrok"]
[Result "1/2-1/2"]
[ECO "B12"]
[WhiteElo "2651"]
[BlackElo "2512"]
[Annotator "TA"]
[PlyCount "78"]
[EventDate "2023.02.03"]
[EventType "swiss"]
[EventCountry "NET"]
[SourceTitle "playchess.com"]
[Source "ChessBase"]
[SourceQuality "1"]
[TimeControl "600+2"]

{[%evp 9,78,0,0,0,21,10,27,31,52,39,18,30,40,44,52,45,38,49,41,-6,0,0,0,0,0,0,0,-3,35,24,41,29,22,0,72,66,70,70,65,3,3,3,3,3,8,8,20,0,0,0,0,0,0,0,101,108,100,0,0,0,0,0,0,0,0,0,0,0,0,0,0]} 1. e4 {[%emt 0:00:14]} c6 {[%emt 0:00:20]} 2. d4 {[%emt 0:00:06]} d5 {[%emt 0:00:02]} 3. e5 {[%emt 0:00:01]} c5 {[%emt 0:00:01]} 4. dxc5 {[%emt 0:00:12]} e6 {[%emt 0:00:01]} 5. a3 {[%emt 0:00:07]} Bxc5 {[%emt 0:00:03]} 6. Nf3 {[%emt 0:00:08] B12: Caro-Kann: Advance Variation.} Nc6 {[%emt 0:00:37]} 7. Bd3 {[%emt 0:00:04]} f6 {[%emt 0:00:01]} 8. b4 {[%emt 0:00:24] White has an edge.} Be7 {[%emt 0:00:04]} 9. Bb2 {[%emt 0:00:02]} Nh6 {[%emt 0:01:07]} 10. O-O {[%emt 0:01:11]} O-O {[%emt 0:00:05]} 11. c4 {[%emt 0:00:05]} fxe5 {[%emt 0:00:28]} 12. Nxe5 {[%emt 0:00:02]} Bf6 {[%emt 0:00:10] [#]} 13. Qe2 $146 {[%emt 0:00:11]} ({Predecessor:} 13. Nxc6 bxc6 14. Nc3 Be5 15. Qh5 Bd4 16. Na4 Bxb2 17. Nxb2 a5 18. c5 Qf6 19. Rab1 axb4 20. axb4 {0-1 Skliarov,V (2376)-Fedoseev,V (2678) PNWCC Online blitz JP 10th 2020 (6)}) 13... Qc7 {[%emt 0:01:20][%cal Rc6e5]} 14. f4 {[%emt 0:01:29]} (14. Nxc6 $14 {is more appropriate.} Bxb2 15. Ne7+ Kh8 16. Qxb2 dxc4 17. Be4 (17. Nxc8 Ng4 $11)) 14... Bxe5 {[%emt 0:00:51]} 15. fxe5 {[%emt 0:00:02]} Rxf1+ {[%emt 0:00:01]} 16. Kxf1 {[%emt 0:00:00]} dxc4 {[%emt 0:00:08]} 17. Bxc4 {[%emt 0:00:06] This pair of bishops is nice.} Bd7 {[%emt 0:00:04]} 18. Nd2 {[%emt 0:00:04]} Rf8+ {[%emt 0:00:15]} (18... Qb6 $5) 19. Kg1 {[%emt 0:00:31]} Rf4 {[%emt 0:01:47]} 20. h3 {[%emt 0:00:58] Black must now prevent Ne4.} Nf5 {[%emt 0:00:07] [#] Hoping for ...Qb6+.} 21. Nf3 {[%emt 0:01:31]} Qb6+ {[%emt 0:00:59]} (21... Nxb4 $1 $11 22. Rc1 Ng3) 22. Kh2 $16 {[%emt 0:00:04]} Ncd4 {[%emt 0:00:18]} 23. Nxd4 {[%emt 0:00:09]} Nxd4 {[%emt 0:00:00]} 24. Bxd4 {[%emt 0:00:37]} ({White should try} 24. Qd3 $1 $14 Nf3+ 25. Kh1 (25. gxf3 $2 {too greedy.} Qf2+ 26. Kh1 Rxf3 $19) (25. Kg3 Nh4 $14)) 24... Qxd4 $11 {[%emt 0:00:33]} 25. Rd1 {[%emt 0:00:03][%cal Ba1d1,Bd1d7,Bd7b7][%mdl 32]} Qxc4 {[%emt 0:00:02]} 26. Qxc4 {[%emt 0:00:01]} Rxc4 {[%emt 0:00:00]} 27. Rxd7 {[%emt 0:00:01][%mdl 4096] Endgame KR-KR} Rc6 {[%emt 0:00:04]} 28. Rxb7 {[%emt 0:01:22]} Ra6 {[%emt 0:00:02]} 29. Kg3 {[%emt 0:00:01]} Rxa3+ {[%emt 0:00:03]} 30. Kf4 {[%emt 0:00:00]} a5 {[%emt 0:00:35]} 31. b5 {[%emt 0:00:02]} a4 {[%emt 0:00:01] [#]} (31... Rb3 $11) 32. Ke4 $1 $16 {[%emt 0:00:03] And now b6 would win.} Ra1 {[%emt 0:00:13] ...a3 would be deadly.} 33. Ra7 {[%emt 0:00:43] White is more active.} (33. Kd3 $16) 33... Rb1 $11 {[%emt 0:00:04] The position is equal.} 34. Rxa4 {[%emt 0:00:15]} Rxb5 {[%emt 0:00:02]} 35. Ra7 {[%emt 0:00:02]} Kf8 {[%emt 0:00:04]} 36. Rc7 {[%emt 0:00:06]} Rb4+ {[%emt 0:00:12]} 37. Ke3 {[%emt 0:00:01]} Rb2 {[%emt 0:00:03]} 38. g3 {[%emt 0:00:03]} Rb3+ {[%emt 0:00:10]} 39. Kf4 {[%emt 0:00:01]} Rb4+ {[%emt 0:00:02] Weighted Error Value: White=0.12 (very precise) /Black=0.13 (very precise)} 1/2-1/2